[Event "Prague Open 2025"]
[Site "Prague"]
[Date "2025.01.15"]
[Round "7.2"]
[White "Jain Kashish Manoj"]
[Black "Senthil Maran K"]
[Result "1-0"]
[Annotator "TA"]
[ECO "B27"]
[WhiteElo "2363"]
[BlackElo "2398"]
[PlyCount "95"]
[EventDate "2025.01.07"]
[EventType "swiss"]
[EventCountry "CZE"]
[SourceTitle "playchess.com"]
[Source "ChessBase"]
[SourceQuality "1"]
[TimeControl "40/5400+30:1800+30"]

{[%evp 11,95,30,29,15,21,18,22,20,20,29,29,16,22,12,12,11,39,27,34,37,41,52,91,58,69,62,79,64,85,74,187,188,191,184,349,352,374,378,537,310,531,540,533,474,29995,511,476,293,470,444,447,0,447,407,360,315,296,249,270,257,264,254,269,257,335,346,347,338,382,386,413,429,441,434,430,382,502,437,448,387,592,593,920,903,908,860]} 1. e4 {[%emt 0:01:50]} c5 {[%emt 0:01:57]} 2. Nf3 {[%emt 0:00:10]} g6 {[%emt 0:00:08]} 3. c3 {[%emt 0:01:42]} d5 {[%emt 0:00:11]} 4. exd5 {[%emt 0:00:59]} Qxd5 {[%emt 0:00:12]} 5. d4 {[%emt 0:00:08]} Bg7 {[%emt 0:01:32]} 6. Na3 {[%emt 0:00:40]} cxd4 {[%emt 0:02:19]} 7. Nb5 {[%emt 0:00:27]} Na6 {[%emt 0:01:09] Inhibits Nc7+.} 8. Nbxd4 {[%emt 0:00:08]} Nf6 {[%emt 0:02:00]} 9. Bb5+ {[%emt 0:00:26]} Bd7 {[%emt 0:02:38]} 10. Bxa6 {[%emt 0:00:10]} bxa6 {[%emt 0:00:28]} 11. O-O {[%emt 0:00:07]} O-O {[%emt 0:02:19]} 12. Re1 {[%emt 0:00:05]} e6 {[%emt 0:06:52]} 13. Ne5 {[%emt 0:00:16]} Qb7 {[%emt 0:02:44]} 14. c4 {[%emt 0:12:19]} Rfd8 {[%emt 0:08:16]} 15. Qb3 {[%emt 0:08:24]} Qc7 {[%emt 0:15:24]} 16. Qf3 {[%emt 0:02:30] Wards off Ne4} h6 {[%emt 0:11:15] [#] Dodges Bg5} 17. Bxh6 $1 {[%emt 0:12:11] White is much more active.} Bxh6 {[%emt 0:00:47]} 18. Qxf6 {[%emt 0:00:08]} Be8 {[%emt 0:00:24]} 19. Ndf3 {[%emt 0:13:12]} Bg7 {[%emt 0:08:55] Against Ng4} 20. Qh4 {[%emt 0:00:34]} Rd6 {[%emt 0:11:01]} (20... f6 $16) 21. Ng4 $18 {[%emt 0:04:25] Strongly threatening Ng5. Excellent horsemanship.} Qd8 {[%emt 0:03:25]} 22. Ng5 {[%emt 0:02:05]} Rb8 $2 {[%emt 0:03:02]} (22... Rc8 23. Qh7+ Kf8) 23. Nh6+ {[%emt 0:01:19]} Bxh6 {[%emt 0:01:48]} 24. Qxh6 {[%emt 0:00:07]} Rd2 {[%emt 0:04:58]} (24... Rc8 {might work better.} 25. b3 (25. Qh7+ Kf8 $18) 25... Rcc6) 25. Qh7+ {[%emt 0:19:18]} Kf8 {[%emt 0:00:01] [#]} 26. Rxe6 $1 {[%emt 0:00:54][%cal Rh7h8]} Rd1+ {[%emt 0:01:21]} 27. Re1 {[%emt 0:00:02]} Rxe1+ {[%emt 0:00:13]} 28. Rxe1 {[%emt 0:00:01][%cal Rh7h8]} Qf6 {[%emt 0:00:20]} 29. b3 {[%emt 0:01:09]} Rd8 $2 {[%emt 0:02:26]} (29... a5 30. Nf3 Rd8 31. Qh6+ Kg8) 30. Qh6+ {[%emt 0:02:27]} Kg8 {[%emt 0:01:21]} 31. Qh7+ {[%emt 0:01:50]} (31. Nh7 Qc3 32. Qc1 Qxc1 33. Nf6+ Kf8 34. Rxc1 Rd2 35. Nxe8 Kxe8 $14) 31... Kf8 {[%emt 0:00:02][%cal Bg8f8,Bf8g7,Bg7h6][%mdl 32]} 32. Ne4 {[%emt 0:00:08]} Qg7 {[%emt 0:03:07]} 33. Qxg7+ {[%emt 0:03:34]} Kxg7 {[%emt 0:00:02][%mdl 4096] Endgame KRB-KRN. White is two pawns up.} 34. c5 {[%emt 0:00:24]} Rd5 {[%emt 0:02:33]} 35. f3 {[%emt 0:01:24]} Bc6 {[%emt 0:00:32]} 36. Kf2 {[%emt 0:01:40]} a5 {[%emt 0:00:34]} 37. a4 {[%emt 0:03:05]} Kh6 {[%emt 0:01:22]} 38. h4 {[%emt 0:01:03]} Kg7 {[%emt 0:00:44]} 39. Re3 {[%emt 0:00:09]} Kf8 {[%emt 0:00:56]} 40. g4 {[%emt 0:00:42] Dodges Rh5} f5 {[%emt 0:00:30]} 41. Ng5 {[%emt 0:30:16]} fxg4 {[%emt 0:04:06]} 42. fxg4 {[%emt 0:00:00]} Bd7 {[%emt 0:00:55]} 43. Kf3 {[%emt 0:00:00]} Bc6 {[%emt 0:05:23]} 44. Kg3 {[%emt 0:00:00]} Bd7 {[%emt 0:00:17]} 45. Kf4 {[%emt 0:00:00]} Rd1 {[%emt 0:04:40]} (45... Rxc5 $142 46. Ne6+ Bxe6) 46. Nf3 {[%emt 0:00:00]} Rc1 {[%emt 0:02:17]} 47. Ne5 {[%emt 0:00:00][%csl LRd7,LRg6]} Be8 {[%emt 0:00:19]} 48. Kg5 {[%emt 0:00:00]} 1-0

[Event "Prague Open 2025"]
[Site "Prague"]
[Date "2025.01.15"]
[Round "7.3"]
[White "Kulhanek, Tomas"]
[Black "Vardanyan, Aras"]
[Result "1/2-1/2"]
[Annotator "TA"]
[ECO "B51"]
[WhiteElo "2313"]
[BlackElo "2312"]
[PlyCount "103"]
[EventDate "2025.01.07"]
[EventType "swiss"]
[EventCountry "CZE"]
[SourceTitle "playchess.com"]
[Source "ChessBase"]
[SourceQuality "1"]
[TimeControl "40/5400+30:1800+30"]

{[%evp 9,103,30,8,18,11,17,18,3,16,21,14,23,31,4,14,7,0,0,18,10,27,4,21,3,12,0,0,0,0,0,0,-8,10,-22,-6,0,7,-18,21,12,40,0,132,37,45,50,27,-24,35,46,27,13,30,8,54,52,68,63,70,51,111,70,65,58,51,0,0,0,0,0,0,0,41,38,25,27,16,20,19,21,21,22,67,8,54,0,0,0,8,0,0,0,8,0,0,0]} 1. e4 {[%emt 0:00:11]} c5 {[%emt 0:00:07]} 2. Nf3 {[%emt 0:00:15]} d6 {[%emt 0:00:06]} 3. Bb5+ {[%emt 0:00:22]} Nd7 {[%emt 0:00:07]} 4. c3 {[%emt 0:00:21]} Ngf6 {[%emt 0:00:36]} 5. Bd3 {[%emt 0:00:20]} a6 {[%emt 0:00:48]} 6. Bc2 {[%emt 0:01:28]} b5 {[%emt 0:00:36]} 7. O-O {[%emt 0:00:14]} Bb7 {[%emt 0:00:27]} 8. Re1 {[%emt 0:00:25]} e6 {[%emt 0:00:58]} 9. d4 {[%emt 0:00:21]} Be7 {[%emt 0:00:18]} 10. Nbd2 {[%emt 0:01:14][%cal Bb1d2,Bd2f1,Bf1g3][%mdl 32]} Qc7 {[%emt 0:00:23]} 11. Nf1 {[%emt 0:00:51]} O-O {[%emt 0:02:47]} 12. Ng3 {[%emt 0:00:59]} Rfe8 {[%emt 0:04:02]} 13. h3 {[%emt 0:03:10]} Bf8 {[%emt 0:03:25]} 14. Bg5 {[%emt 0:02:08]} g6 {[%emt 0:05:01]} 15. Rc1 {[%emt 0:04:56]} Bg7 {[%emt 0:03:58]} 16. a3 {[%emt 0:05:34]} e5 {[%emt 0:02:28]} 17. d5 {[%emt 0:01:10]} c4 {[%emt 0:01:43]} 18. Qd2 {[%emt 0:05:40]} Nc5 {[%emt 0:02:37]} 19. Bh6 {[%emt 0:04:48]} Qe7 {[%emt 0:04:01]} 20. Nh2 {[%emt 0:07:08]} a5 {[%emt 0:07:18]} 21. Bg5 {[%emt 0:17:26]} Bc8 {[%emt 0:05:04]} 22. Rf1 {[%emt 0:01:44]} Rb8 {[%emt 0:06:22]} 23. Kh1 {[%emt 0:09:10]} Kh8 {[%emt 0:13:35]} 24. f3 {[%emt 0:03:29]} Rb7 {[%emt 0:10:18]} 25. Ng4 {[%emt 0:02:19]} h5 {[%emt 0:00:44] [#]} (25... Bd7 $11 {remains equal.}) 26. Bxf6 {[%emt 0:12:44]} (26. Nxh5 $1 $16 Bxg4 27. Nxg7 Kxg7 28. hxg4 (28. fxg4 Nfxe4 29. Bxe7 Nxd2 $17)) 26... Bxf6 $14 {[%emt 0:00:05]} 27. Qh6+ {[%emt 0:01:20]} Kg8 {[%emt 0:00:04]} 28. Nxf6+ {[%emt 0:03:02]} ({But not} 28. Nxh5 Bh8 29. Ng3 Bg7 $17) 28... Qxf6 {[%emt 0:00:39]} 29. Nxh5 {[%emt 0:00:12]} Qh8 {[%emt 0:00:06]} 30. Qxh8+ {[%emt 0:00:13]} Kxh8 {[%emt 0:00:04]} 31. Nf6 {[%emt 0:00:08]} Ree7 {[%emt 0:01:18]} (31... Rd8 $11) 32. f4 {[%emt 0:00:29]} Kg7 {[%emt 0:02:19]} 33. fxe5 {[%emt 0:02:30]} Rxe5 {[%emt 0:00:08]} 34. Ra1 {[%emt 0:05:07]} Rbe7 {[%emt 0:09:19]} ({Better is} 34... Nd7 $14 35. Nxd7 Bxd7) 35. Kh2 {[%emt 0:01:05]} Nd7 {[%emt 0:01:22]} 36. Nxd7 {[%emt 0:01:30]} Bxd7 {[%emt 0:01:22]} 37. Rfd1 {[%emt 0:02:46]} (37. g4 $14) 37... f5 $11 {[%emt 0:02:14]} 38. exf5 {[%emt 0:00:25]} Re2 {[%emt 0:00:21]} 39. Rf1 $1 {[%emt 0:00:42] f6+ would now be deadly.} R7e3 {[%emt 0:04:03]} 40. Rac1 {[%emt 0:01:12]} Rd2 {[%emt 0:05:09]} 41. fxg6 {[%emt 0:12:22] Hoping for Rf7+.} Bxh3 {[%emt 0:05:16]} 42. Rf7+ {[%emt 0:00:18]} Kg8 {[%emt 0:00:09] [#]} 43. Be4 {[%emt 0:02:30]} Rxe4 {[%emt 0:04:03]} 44. Kxh3 {[%emt 0:00:12][%mdl 4096] Endgame. KRR-KRR} Re3+ {[%emt 0:05:09]} 45. g3 {[%emt 0:04:05]} Rxd5 {[%emt 0:01:02]} 46. Rcf1 {[%emt 0:03:02]} (46. Kh4 $1 $14) 46... Rdd3 {[%emt 0:02:41]} (46... Rg5 $11) 47. Rf8+ {[%emt 0:03:40]} ({White should try} 47. Rg1 $14) 47... Kg7 {[%emt 0:00:05] The position is equal.} 48. R8f7+ {[%emt 0:00:14]} Kxg6 {[%emt 0:04:51]} 49. R1f6+ {[%emt 0:02:58]} Kg5 {[%emt 0:00:35]} 50. Rf5+ {[%emt 0:00:07]} Kg6 {[%emt 0:00:04]} 51. R5f6+ {[%emt 0:02:18]} Kg5 {[%emt 0:00:07]} 52. Rf5+ {[%emt 0:00:07] Weighted Error Value: White=0.14 (very precise) /Black=0.16 (very precise) .  Mistake:       	White=4     	Black=4      Inaccurate:     	White=4     	Black=5      OK:         	White=15    	Black=16     Best:        	White=2     	Black=3      Strong:       	White=1     	---        Brilliant:      	White=1     	---} 1/2-1/2

[Event "Prague Open 2025"]
[Site "Prague"]
[Date "2025.01.15"]
[Round "7.4"]
[White "Horak, Martin"]
[Black "Tolmacevs, Artjoms"]
[Result "1/2-1/2"]
[Annotator "TA"]
[ECO "B90"]
[WhiteElo "2357"]
[BlackElo "2252"]
[PlyCount "60"]
[EventDate "2025.01.07"]
[EventType "swiss"]
[EventCountry "CZE"]
[SourceTitle "playchess.com"]
[Source "ChessBase"]
[SourceQuality "1"]
[TimeControl "40/5400+30:1800+30"]

{[%evp 11,60,-2,8,15,36,0,0,0,0,0,0,0,9,-17,-40,-30,-20,-35,-40,-79,-82,-99,-27,-88,-82,-105,-112,-97,-37,-64,0,-31,-11,-23,-23,-23,-37,-28,-20,-20,-22,-27,-27,-27,0,0,0,0,0,0,0]} 1. e4 {[%emt 0:00:05]} c5 {[%emt 0:00:05]} 2. Nf3 {[%emt 0:00:04]} d6 {[%emt 0:00:06]} 3. d4 {[%emt 0:00:03]} cxd4 {[%emt 0:00:06]} 4. Nxd4 {[%emt 0:00:03]} Nf6 {[%emt 0:00:11]} 5. Nc3 {[%emt 0:00:04]} a6 {[%emt 0:00:09]} 6. Rg1 {[%emt 0:00:06]} e5 {[%emt 0:02:58]} 7. Nb3 $1 {[%emt 0:00:06]} b5 {[%emt 0:11:05][%cal Bb7b5,Bb5b4][%mdl 32]} 8. a4 {[%emt 0:09:07]} b4 {[%emt 0:02:31]} 9. Nd5 {[%emt 0:00:06]} Nbd7 {[%emt 0:10:35]} 10. Bg5 {[%emt 0:04:26]} Bb7 {[%emt 0:02:17]} 11. Bc4 {[%emt 0:00:46]} Rc8 {[%emt 0:10:35]} 12. Qd3 {[%emt 0:01:45]} Be7 {[%emt 0:12:02]} 13. Bxf6 {[%emt 0:02:40]} Nxf6 {[%emt 0:00:45]} 14. Bxa6 {[%emt 0:21:32]} Bxa6 {[%emt 0:01:03]} 15. Qxa6 {[%emt 0:00:06]} Nxd5 {[%emt 0:05:39]} 16. exd5 {[%emt 0:07:29]} O-O {[%emt 0:06:36]} (16... Rxc2 $17 {[%cal Oe8g8]} 17. Rc1 Rxc1+ (17... Rxb2 $2 18. Rc8 $18) 18. Nxc1 O-O) 17. O-O-O {[%emt 0:04:39]} (17. Qe2 $11) 17... Qc7 $17 {[%emt 0:00:34][%csl Gc8][%cal Rc7c2][%mdl 1024] Black has strong compensation.} 18. Qd3 {[%emt 0:00:54]} Ra8 {[%emt 0:00:48]} (18... Qa7 19. a5 $15) 19. a5 {[%emt 0:03:44] [#]} Bg5+ {[%emt 0:05:52]} (19... Rxa5 $1 $17 {aiming for ...Bg5+.} 20. Nxa5 Qxa5) 20. Kb1 $15 {[%emt 0:00:50]} Rfc8 {[%emt 0:05:01]} (20... Rxa5 $15 21. Nxa5 Qxa5) 21. g3 {[%emt 0:02:50][%cal Of2f4]} Rxa5 {[%emt 0:04:47]} 22. f4 {[%emt 0:07:45]} (22. h4 $5 Bh6 23. Nxa5 Qxa5 24. Qb3 $17) 22... exf4 {[%emt 0:00:16]} 23. gxf4 {[%emt 0:08:55]} Bf6 {[%emt 0:01:27]} 24. Nxa5 {[%emt 0:03:07]} Qxa5 {[%emt 0:00:00]} 25. Qb3 $1 {[%emt 0:00:13]} (25. Qf5 Ra8 26. Kc1 Bxb2+ (26... Qa1+ $2 27. Kd2 $19) 27. Kd2 Re8 $19) 25... Ra8 {[%emt 0:01:50][%csl Ga8][%cal Ra5a1]} 26. Kc1 {[%emt 0:00:25]} Qc5 {[%emt 0:02:18][%cal Of6c3]} 27. Kb1 {[%emt 0:01:47]} Qa7 {[%emt 0:05:48][%csl Ga8][%cal Ra7a1]} 28. Kc1 $1 {[%emt 0:00:23]} Qf2 {[%emt 0:01:09]} 29. Kb1 {[%emt 0:00:13] Wards off Ra1+} Qa7 {[%emt 0:02:15][%csl Ga8][%cal Ra7a1]} ({Reject} 29... Qxh2 $6 30. Qxb4 Rc8 31. Rc1 $14 (31. Qxd6 $2 {is a self mate.} Qxc2+ 32. Ka2 Qxb2#)) 30. Kc1 $1 {[%emt 0:00:06]} Qf2 {[%emt 0:02:48]} 1/2-1/2

[Event "Prague Open 2025"]
[Site "Prague"]
[Date "2025.01.15"]
[Round "7.5"]
[White "Diachek, Andrii"]
[Black "Lalic, Bogdan"]
[Result "1/2-1/2"]
[Annotator "TA"]
[ECO "C07"]
[WhiteElo "2104"]
[BlackElo "2321"]
[PlyCount "40"]
[EventDate "2025.01.07"]
[EventType "swiss"]
[EventCountry "CZE"]
[SourceTitle "playchess.com"]
[Source "ChessBase"]
[SourceQuality "1"]
[TimeControl "40/5400+30:1800+30"]

{[%evp 10,40,16,10,17,14,17,10,21,20,22,16,22,0,-7,0,0,0,9,27,27,-24,-24,-32,-27,-50,-24,-18,-25,-15,-13,-31,-35]} 1. e4 {[%emt 0:00:02]} e6 {[%emt 0:07:04]} 2. d4 {[%emt 0:00:16]} d5 {[%emt 0:00:05]} 3. Nd2 {[%emt 0:00:34]} c5 {[%emt 0:00:19]} 4. exd5 {[%emt 0:00:07]} Qxd5 {[%emt 0:00:11]} 5. Ngf3 {[%emt 0:00:12]} cxd4 {[%emt 0:00:22]} 6. Bc4 {[%emt 0:00:09]} Qd7 {[%emt 0:00:14]} 7. O-O {[%emt 0:00:28]} Nc6 {[%emt 0:00:13]} 8. Nb3 {[%emt 0:00:14][%cal Rb3d4]} a6 {[%emt 0:00:11]} 9. Nbxd4 {[%emt 0:00:13]} Nxd4 {[%emt 0:00:10]} 10. Nxd4 {[%emt 0:00:30]} Qc7 {[%emt 0:00:10] Wards off Bf4} 11. Qe2 {[%emt 0:02:19]} Bd6 {[%emt 0:00:20]} 12. h3 {[%emt 0:01:44]} Ne7 {[%emt 0:00:09][%cal Bg8e7,Be7g6,Bg6e5,Be5d3][%mdl 32] Against Nf5} (12... Nf6 {seems wilder.} 13. Nf5 Bh2+ 14. Kh1 Bf4) 13. Bd3 {[%emt 0:11:05]} Bd7 {[%emt 0:05:03]} 14. Re1 {[%emt 0:03:41]} Ng6 {[%emt 0:05:49]} 15. Qe4 {[%emt 0:16:12]} ({White should try} 15. Qh5 O-O 16. Nf3) 15... O-O $11 {[%emt 0:01:23]} 16. Nf3 {[%emt 0:10:03]} Bc6 {[%emt 0:01:57]} 17. Qg4 {[%emt 0:01:36]} Bxf3 {[%emt 0:01:36]} 18. Qxf3 {[%emt 0:01:11]} Ne5 {[%emt 0:00:10]} 19. Qe4 {[%emt 0:00:48][%csl Gd3][%cal Re4h7]} Nxd3 {[%emt 0:00:10]} 20. Qxd3 {[%emt 0:00:05]} Rfd8 {[%emt 0:00:18]} 1/2-1/2

[Event "Prague Open 2025"]
[Site "Prague"]
[Date "2025.01.15"]
[Round "7.6"]
[White "Colijn, Stefan"]
[Black "Chan, Kim Yew"]
[Result "1/2-1/2"]
[Annotator "TA"]
[ECO "B40"]
[WhiteElo "2315"]
[BlackElo "2258"]
[PlyCount "199"]
[EventDate "2025.01.07"]
[EventType "swiss"]
[EventCountry "CZE"]
[SourceTitle "playchess.com"]
[Source "ChessBase"]
[SourceQuality "1"]
[TimeControl "40/5400+30:1800+30"]

{[%evp 30,199,78,66,137,136,183,139,156,188,150,150,410,377,752,720,760,-138,-168,-137,-164,-183,-183,-158,-186,-177,-188,-150,-77,-85,-64,-67,0,0,0,-404,0,0,0,0,0,0,66,15,32,32,38,30,96,88,88,44,56,29,60,30,37,24,44,44,44,44,44,0,44,44,44,23,44,23,23,14,23,14,14,14,14,14,7,0,12,0,7,0,0,0,0,0,0,0,11,11,11,0,7,0,0,0,0,0,0,0,0,0,4,0,0,0,0,0,0,0,0,0,0,0,0,0,0,0,0,0,0,0,0,0,0,0,0,0,0,0,0,0,0,0,0,0,0,0,0,0,0,0,3,0,15,0,22,0,61,61,70,70,179,171,247,246,197,89,89,10,10,0,0,0,10,10,25,0,25,35]} 1. e4 {[%emt 0:00:23]} c5 {[%emt 0:00:14]} 2. Nf3 {[%emt 0:00:57]} e6 {[%emt 0:00:03]} 3. c3 {[%emt 0:00:42]} d5 {[%emt 0:00:45]} 4. e5 {[%emt 0:01:22]} d4 {[%emt 0:02:06]} 5. Bd3 {[%emt 0:04:50]} Bd7 {[%emt 0:11:01]} 6. b4 {[%emt 0:20:05]} cxb4 {[%emt 0:06:45]} 7. O-O {[%emt 0:07:38]} Nc6 {[%emt 0:02:56]} 8. a3 {[%emt 0:10:41]} a5 {[%emt 0:06:49]} 9. Bb2 {[%emt 0:02:52]} Nge7 {[%emt 0:04:56]} 10. Re1 {[%emt 0:10:34]} Nd5 {[%emt 0:09:48]} 11. Re4 {[%emt 0:04:36]} dxc3 {[%emt 0:06:21]} 12. dxc3 {[%emt 0:00:34]} Be7 {[%emt 0:00:42]} 13. c4 {[%emt 0:06:18]} Nc7 {[%emt 0:03:39]} 14. Rg4 {[%emt 0:00:40]} g6 {[%emt 0:00:52]} 15. Nbd2 {[%emt 0:01:06]} bxa3 {[%emt 0:03:06]} (15... h5 $14 16. Rg3) 16. Rxa3 $16 {[%emt 0:02:08]} O-O {[%emt 0:21:53]} (16... h5 $14 17. Rg3 (17. Rxg6 fxg6 18. Bxg6+ Kf8 $15) 17... Na6) 17. Ne4 $1 $16 {[%emt 0:06:33]} Ne8 {[%emt 0:00:13]} (17... f5 $16 18. exf6 Bxa3 19. Bxa3 e5) 18. c5 {[%emt 0:01:10]} Nb4 {[%emt 0:02:39]} 19. Bb1 $1 {[%emt 0:04:05]} Bc6 {[%emt 0:01:54]} 20. Nd6 {[%emt 0:00:11]} b6 $2 {[%emt 0:00:59]} (20... Nd5 $16 {might work better.}) 21. Qd2 $18 {[%emt 0:03:13]} bxc5 $2 {[%emt 0:03:19]} (21... Bxd6 22. cxd6 Qd7) 22. Qh6 $18 {[%emt 0:01:06]} Nd5 {[%emt 0:06:29]} 23. Ng5 $2 {[%emt 0:04:19]} (23. Nd4 $18 {White threatens Nxe6 and mate.} Bg5 24. Rxg5 Qxg5 25. Qxg5 cxd4 26. Bxd4 Nxd6 27. exd6) 23... Bxg5 $17 {[%emt 0:00:13]} 24. Rxg5 {[%emt 0:00:14]} Nf4 {[%emt 0:00:58]} 25. Rg4 {[%emt 0:02:05]} Rb8 $1 {[%emt 0:01:04]} 26. Rh4 {[%emt 0:02:16]} Qxh4 $1 {[%emt 0:00:35]} 27. Qxh4 {[%emt 0:00:01]} Rxb2 {[%emt 0:00:07]} 28. Ra1 {[%emt 0:00:52]} Nxd6 {[%emt 0:02:25]} (28... Ne2+ 29. Kf1 Nxd6 30. exd6 Nc3) 29. Qxf4 $17 {[%emt 0:01:09]} Rfb8 {[%emt 0:00:17]} 30. Qc1 {[%emt 0:01:58]} (30. Bxg6 $2 fxg6 31. Qc1 Ne4 $19) 30... Ne4 {[%emt 0:00:50]} (30... Nc4 $1 $15 31. Bd3 Nxe5) 31. f3 $1 $11 {[%emt 0:00:20]} (31. Bxe4 $2 Bxe4 32. f3 Rb1 33. fxe4 (33. Rxb1 $2 Rxb1 $19) 33... Rxc1+ 34. Rxc1 Rb5 $19) 31... Nc3 {[%emt 0:01:22]} (31... Nd2 $5 32. Bc2 $8 Nc4 $11) 32. Bd3 $2 {[%emt 0:00:46][%mdl 8192]} (32. Qxc3 $11 {and White stays safe.} Rxb1+ 33. Rxb1 Rxb1+ 34. Kf2) 32... Ne2+ $2 {[%emt 0:00:16]} (32... Rb1 $1 $19 {[%cal Rb1c1]} 33. Qxb1 (33. Bxb1 $2 Ne2+ 34. Kf1 Nxc1 $19) (33. Rxb1 $2 Rxb1 34. Qxb1 Nxb1 $19) 33... Nxb1 34. Bxb1 c4) 33. Bxe2 $11 {[%emt 0:00:06]} Rxe2 {[%emt 0:00:01]} 34. Qxc5 {[%emt 0:01:08]} (34. Rxa5 $2 Rbb2 (34... Rxe5 35. Rxc5 Rxc5 36. Qxc5 $14) 35. Qf1 Rec2 $19 (35... Rxe5 36. h4 $17)) 34... Bd5 {[%emt 0:00:37]} 35. Qxa5 {[%emt 0:00:23]} h5 {[%emt 0:01:10]} (35... h6 $11 36. Qa4 Rbb2) 36. Re1 {[%emt 0:00:38]} (36. Qc7 $1 $14 Rbb2 37. Qd8+ Kh7 38. Qg5) 36... Ra2 {[%emt 0:00:16]} 37. Qc7 {[%emt 0:00:26]} Rbb2 {[%emt 0:00:11]} 38. Qd8+ {[%emt 0:00:06]} Kh7 {[%emt 0:00:17]} (38... Kg7 $11 {remains equal.} 39. Qg5 Rxg2+ 40. Qxg2 Rxg2+ 41. Kxg2 f6) 39. Qg5 $16 {[%emt 0:00:33]} Rc2 {[%emt 0:01:16]} 40. h4 {[%emt 0:00:35]} Rab2 {[%emt 0:00:20]} 41. Rc1 {[%emt 0:07:06]} Kg8 {[%emt 0:02:23]} 42. Rxc2 {[%emt 0:05:26]} (42. Rd1 {is interesting.} Re2 43. Ra1 Ra2 44. Rf1) 42... Rxc2 {[%emt 0:00:15]} 43. Qf6 {[%emt 0:00:13]} Rc3 {[%emt 0:00:51]} 44. Kf2 {[%emt 0:00:22]} Rb3 {[%emt 0:00:31]} 45. Kg3 {[%emt 0:00:15]} Rb4 {[%emt 0:00:24]} 46. Kf2 {[%emt 0:00:47]} Rb3 {[%emt 0:00:07]} 47. Qe7 {[%emt 0:00:13]} Rc3 {[%emt 0:00:56]} 48. Qg5 {[%emt 0:00:57]} Rb3 {[%emt 0:01:03]} 49. Ke2 {[%emt 0:00:07]} Ra3 {[%emt 0:00:31]} 50. Kd2 {[%emt 0:00:02]} Rb3 {[%emt 0:00:45]} 51. Kc2 {[%emt 0:00:01]} Ra3 $1 {[%emt 0:00:46]} 52. Kb2 {[%emt 0:03:44]} Rb3+ {[%emt 0:00:05]} 53. Kc1 {[%emt 0:00:02]} Rc3+ {[%emt 0:00:19]} 54. Kd2 {[%emt 0:00:16]} Rb3 {[%emt 0:00:05]} 55. Kc2 {[%emt 0:01:39]} Ra3 $1 {[%emt 0:00:15]} 56. Qd8+ {[%emt 0:00:05]} Kg7 $1 {[%emt 0:00:24]} 57. Qf6+ {[%emt 0:00:10]} Kg8 {[%emt 0:00:11]} 58. Qg5 {[%emt 0:00:18]} Kg7 {[%emt 0:01:14]} 59. Kd2 {[%emt 0:02:50]} Rb3 {[%emt 0:00:20]} 60. Ke2 {[%emt 0:00:20]} Ra3 {[%emt 0:00:54]} 61. Kf2 {[%emt 0:00:08]} Rb3 {[%emt 0:00:24]} 62. Qe7 {[%emt 0:00:10]} Rc3 {[%emt 0:00:27]} 63. Kg3 {[%emt 0:00:24]} Rc4 {[%emt 0:00:08]} 64. Qf6+ {[%emt 0:00:25]} Kg8 {[%emt 0:00:09]} 65. Qd8+ {[%emt 0:00:04]} Kg7 {[%emt 0:00:06]} 66. Qa5 {[%emt 0:00:17]} Rd4 {[%emt 0:00:52]} 67. Qc3 {[%emt 0:05:09]} Rc4 {[%emt 0:00:17]} 68. Qd2 {[%emt 0:01:26]} Ra4 {[%emt 0:00:18]} 69. Kh3 {[%emt 0:00:21]} Rc4 {[%emt 0:00:31]} 70. Qg5 {[%emt 0:00:23]} Kg8 {[%emt 0:00:48]} 71. Qf6 {[%emt 0:00:41]} Rc3 {[%emt 0:00:38]} 72. Qe7 {[%emt 0:00:56]} Kg7 {[%emt 0:00:29]} 73. Kh2 {[%emt 0:00:30]} Rc2 {[%emt 0:00:27]} 74. Qd8 {[%emt 0:01:46]} Rc4 {[%emt 0:00:27]} 75. Kg3 {[%emt 0:00:20]} Ra4 {[%emt 0:00:14]} 76. Kf2 {[%emt 0:01:27]} Ra2+ {[%emt 0:00:26]} 77. Kg3 {[%emt 0:01:09]} Ra4 {[%emt 0:00:04]} 78. Qg5 {[%emt 0:00:17]} Rc4 {[%emt 0:00:28]} 79. Kf2 {[%emt 0:00:20]} Rc3 {[%emt 0:00:16]} 80. Ke2 {[%emt 0:00:25]} Ra3 {[%emt 0:00:25]} 81. Kd2 {[%emt 0:00:12]} Rb3 {[%emt 0:00:18]} 82. Kc2 {[%emt 0:03:17]} Ra3 $1 {[%emt 0:00:53]} 83. Kd1 {[%emt 0:01:07]} Rd3+ {[%emt 0:00:19]} 84. Ke1 {[%emt 0:00:02]} Ra3 {[%emt 0:00:17]} 85. Kf2 {[%emt 0:00:17]} Rc3 {[%emt 0:00:21]} 86. Qe7 {[%emt 0:00:59]} Rc4 {[%emt 0:00:11]} 87. Qf6+ {[%emt 0:00:27]} Kg8 {[%emt 0:00:04]} 88. Ke3 {[%emt 0:01:37]} Ra4 {[%emt 0:00:20]} 89. Qg5 {[%emt 0:00:26]} Kg7 {[%emt 0:00:32]} ({Better is} 89... Ra3+ $11 90. Kf4 Ra2 91. Qd8+ Kh7) 90. f4 $14 {[%emt 0:00:42]} Re4+ {[%emt 0:09:34]} 91. Kd3 {[%emt 0:00:06]} Re1 {[%emt 0:01:41] [#]} (91... Kh8 $14) 92. g4 $1 $18 {[%emt 0:03:01]} Bf3 {[%emt 0:05:19]} (92... Rg1 $142) 93. f5 $18 {[%emt 0:00:45]} Bxg4 {[%emt 0:02:02] [#]} 94. Qf6+ {[%emt 0:02:50]} (94. f6+ $1 $18 {and the rest is easy.} Kh7 95. Qf4) 94... Kg8 $16 {[%emt 0:00:49]} 95. Qd8+ {[%emt 0:00:21]} ({White should try} 95. fxg6 $16 Rd1+ 96. Kc4 fxg6 97. Qxg6+ Kf8 98. Qf6+ Kg8 99. Qg6+) 95... Kh7 $1 $11 {[%emt 0:00:22]} 96. Qf8 {[%emt 0:00:35]} Bxf5+ {[%emt 0:00:35]} ({Stronger than} 96... Rxe5 97. f6 (97. Qxf7+ Kh8 98. f6 Bf5+ 99. Kc3 Re3+ 100. Kd2 Rd3+ 101. Ke2 Rd7 102. Qe8+ Kh7 103. Qxd7+ Kh8 104. Qg7#) 97... Bf5+ 98. Kd2 Rd5+ 99. Kc3 (99. Kc1 Rc5+ 100. Qxc5 Kg8 101. Qc8+ Kh7 102. Qf8 Bh3 103. Qg7#)) 97. Kd2 {[%emt 0:00:07]} Re4 {[%emt 0:00:25]} 98. Qxf7+ {[%emt 0:00:02]} Kh8 {[%emt 0:00:03]} 99. Kc3 {[%emt 0:00:34]} Rg4 {[%emt 0:00:10]} 100. Qf8+ 1/2-1/2